[Event "FTX Crypto Cup MCCT 2022"]
[Site "Miami"]
[Date "2022.08.11"]
[Round "2.1"]
[White "Carlsen, Magnus"]
[Black "Niemann, Hans Moke"]
[Result "0-1"]
[ECO "B31"]
[WhiteElo "2864"]
[BlackElo "2688"]
[Annotator "TA"]
[PlyCount "84"]
[EventDate "2022.08.10"]
[EventType "tourn"]
[EventCountry "USA"]
[SourceTitle "playchess.com"]
[Source "ChessBase"]
[SourceQuality "1"]
[TimeControl "900+10"]

{[%evp 22,84,10,-1,10,10,8,6,6,0,12,-22,-25,-29,-24,-29,-21,-27,-22,-22,-29,-33,-27,-31,-45,-28,-32,-29,0,0,0,-108,-108,-118,-120,-224,-225,-241,-190,-213,-195,-177,-118,-195,-145,-140,-142,-169,-186,-595,-609,-875,-797,-880,-868,-868,-854,-852,-856,-943,-942,-29979,-29968,-29981,-29979]} 1. e4 {[%emt 0:00:00][%cal Be2e4,Be4e5][%mdl 32]} c5 {[%emt 0:00:00]} 2. Nf3 {[%emt 0:00:22]} Nc6 {[%emt 0:00:04]} 3. Bb5 {[%emt 0:00:05]} g6 {[%emt 0:00:02]} 4. O-O {[%emt 0:00:09]} Bg7 {[%emt 0:00:07]} 5. Re1 {[%emt 0:00:02]} Nf6 {[%emt 0:00:05]} 6. e5 {[%emt 0:00:13]} Nd5 {[%emt 0:00:05]} 7. Nc3 {[%emt 0:00:01][%cal Bb1c3,Bc3e4,Be4f6][%mdl 32]} Nc7 {[%emt 0:00:03]} 8. Bxc6 {[%emt 0:00:01]} dxc6 {[%emt 0:00:01]} 9. Ne4 {[%emt 0:00:01]} b6 {[%emt 0:00:01]} 10. Nf6+ {[%emt 0:00:02]} Kf8 {[%emt 0:00:01]} 11. Ne4 {[%emt 0:00:00]} Bg4 {[%emt 0:00:38] 11...h6 is the hot move.} 12. d3 {[%emt 0:00:24]} Ne6 {[%emt 0:00:17] B31: Sicilian: 2...Nc6 3 Bb5 g6.} (12... Bxe5 {is more complex.} 13. Nxe5 Bxd1 14. Bh6+ Kg8) 13. Neg5 {[%emt 0:03:19]} Nxg5 {[%emt 0:01:36]} 14. Bxg5 {[%emt 0:00:03]} Qd5 {[%emt 0:00:02] The position is equal.} 15. Re4 {[%emt 0:01:45]} Bf5 {[%emt 0:01:09] [#] Hoping for ...h6.} (15... Bxf3 $5 16. Qxf3 Bxe5 $11) 16. c4 {[%emt 0:01:22] [#]} Qe6 $146 {[%emt 0:02:57] aiming for ...h6.} ({Predecessor:} 16... Qd7 17. Re3 Rd8 18. Qe1 h6 19. Bh4 Kg8 20. Rd1 Bg4 21. Bg3 Kh7 22. a3 Bxf3 23. Rxf3 {½-½ (63) Eid,F (2398)-Sebenik,M (2425) Beirut 2003}) 17. Re3 {[%emt 0:00:18]} h6 {[%emt 0:00:14]} 18. Bf4 {[%emt 0:00:12]} g5 {[%emt 0:00:15]} 19. Bg3 {[%emt 0:00:01]} Rd8 {[%emt 0:00:14]} 20. h3 {[%emt 0:01:11]} Kg8 $36 {[%emt 0:00:33][%mdl 2048] Black has some pressure.} 21. a3 {[%emt 0:00:27]} Kh7 {[%emt 0:00:46]} 22. b4 {[%emt 0:00:02]} Rd7 {[%emt 0:00:51]} 23. bxc5 {[%emt 0:00:03]} bxc5 {[%emt 0:00:06]} 24. Qb3 {[%emt 0:00:44]} Rhd8 {[%emt 0:00:16][%cal Rd7d3]} 25. Rd1 {[%emt 0:00:35]} Qg6 {[%emt 0:01:55][%cal Rf5d3]} 26. Ne1 {[%emt 0:00:10]} (26. Qa4 $1 $11) 26... h5 $17 {[%emt 0:00:22][%cal Bh6h5,Bh5h4][%mdl 32]} 27. Nf3 {[%emt 0:00:02]} h4 {[%emt 0:01:20]} 28. Bh2 {[%emt 0:00:03]} (28. e6 $17 Bxe6 29. Be5) 28... e6 $19 {[%emt 0:00:27]} ({Worse is} 28... Bxd3 29. Qc3 (29. Nxg5+ $2 Qxg5 30. Kh1 Be4 $19)) 29. Qc3 {[%emt 0:01:28]} Bf8 {[%emt 0:00:34]} ({And not} 29... Bxd3 30. Kh1 $17 (30. Nxg5+ Qxg5 31. Rexd3 Rxd3 $17)) 30. Ne1 {[%emt 0:00:15]} g4 {[%emt 0:00:21]} 31. hxg4 {[%emt 0:00:02]} Bxg4 {[%emt 0:00:18]} ({Black should play} 31... Qxg4 $19 32. f3 Qd4 33. Qxd4 Rxd4) 32. f3 {[%emt 0:00:44]} (32. Rd2 $17 {was called for.}) 32... Bf5 {[%emt 0:00:49]} ({Better is} 32... Bh6 $19 33. Re4 Bf5 34. Rxh4 Qg5) 33. f4 $17 {[%emt 0:00:02]} Bh6 {[%emt 0:00:24]} 34. Qa5 {[%emt 0:01:13]} Qg4 {[%emt 0:00:26]} ({Inferior is} 34... Bxd3 35. Nxd3 Rxd3 36. Rexd3 Rxd3 37. Rxd3 Qxd3 38. Qxc5 $17) 35. Rf3 $2 {[%emt 0:00:04]} (35. Ra1) 35... Be4 $19 {[%emt 0:00:18]} 36. Qxc5 {[%emt 0:01:04]} Bxf3 {[%emt 0:00:14]} 37. Nxf3 {[%emt 0:00:00]} h3 {[%emt 0:00:24][%csl Gh3][%cal Rg4g2] [#]} 38. Qf2 {[%emt 0:00:02]} Rxd3 {[%emt 0:00:23]} 39. Rxd3 {[%emt 0:00:01]} Rxd3 {[%emt 0:00:00][%cal Bd8d3,Bd3a3,Ba3e3][%mdl 32]} 40. Ne1 {[%emt 0:00:01]} Rxa3 {[%emt 0:00:19] And now ...Bf8 would win.} 41. Qb2 {[%emt 0:00:10]} Re3 {[%emt 0:00:10]} 42. Kf2 {[%emt 0:00:15]} Bxf4 {[%emt 0:00:15] Weighted Error Value: White=0.71/Black=0.07 (flawless)} 0-1

[Event "FTX Crypto Cup MCCT 2022"]
[Site "Miami"]
[Date "2022.08.11"]
[Round "2.1"]
[White "Firouzja, Alireza"]
[Black "Le, Quang Liem"]
[Result "1/2-1/2"]
[ECO "C93"]
[WhiteElo "2793"]
[BlackElo "2722"]
[Annotator "TA"]
[PlyCount "88"]
[EventDate "2022.08.10"]
[EventType "tourn"]
[EventCountry "USA"]
[SourceTitle "playchess.com"]
[Source "ChessBase"]
[SourceQuality "1"]
[TimeControl "900+10"]

{[%evp 30,88,23,21,36,22,22,13,22,19,22,22,26,21,38,14,14,0,0,0,0,0,0,0,0,0,0,0,0,0,0,0,0,0,0,0,0,0,0,0,0,0,0,0,0,0,0,0,0,0,0,0,0,0,0,0,0,0,0,0,0]} 1. e4 {[%emt 0:00:00]} e5 {[%emt 0:00:00]} 2. Nf3 {[%emt 0:00:09]} Nc6 {[%emt 0:00:03]} 3. Bb5 {[%emt 0:00:04]} a6 {[%emt 0:00:02]} 4. Ba4 {[%emt 0:00:01]} Nf6 {[%emt 0:00:01]} 5. O-O {[%emt 0:00:01]} Be7 {[%emt 0:00:01]} 6. Re1 {[%emt 0:00:04]} b5 {[%emt 0:00:03]} 7. Bb3 {[%emt 0:00:01]} d6 {[%emt 0:00:01]} 8. c3 {[%emt 0:00:03]} O-O {[%emt 0:00:01]} 9. h3 {[%emt 0:00:01]} Bb7 {[%emt 0:00:02]} 10. d4 {[%emt 0:00:08]} Re8 {[%emt 0:00:03]} 11. Nbd2 {[%emt 0:00:07]} Bf8 {[%emt 0:00:10]} 12. a3 {[%emt 0:00:03]} h6 {[%emt 0:00:12]} 13. Bc2 {[%emt 0:00:04]} Nb8 {[%emt 0:00:03]} 14. b3 {[%emt 0:00:06]} Nbd7 {[%emt 0:00:02]} 15. Bb2 {[%emt 0:00:02]} g6 {[%emt 0:00:04]} 16. a4 {[%emt 0:00:13] 16.Bd3 is vanishing.} Bg7 {[%emt 0:00:03] C93: Closed Ruy Lopez: Smyslov Variation.} 17. Bd3 {[%emt 0:00:47]} bxa4 {[%emt 0:00:04]} 18. Rxa4 {[%emt 0:00:31]} d5 {[%emt 0:00:01]} 19. dxe5 {[%emt 0:00:41]} Nxe4 {[%emt 0:00:14]} 20. Nxe4 {[%emt 0:00:05]} dxe4 {[%emt 0:00:00]} 21. Bxe4 {[%emt 0:00:01]} Bxe4 {[%emt 0:00:14]} 22. Raxe4 {[%emt 0:00:02] [#] Black must now prevent Rd4.} Nxe5 $1 {[%emt 0:00:27] [#] The position is equal.} 23. Nxe5 $146 {[%emt 0:00:25]} (23. Rxe5 {seems wilder.} Bxe5 24. Qxd8 Raxd8 25. Rxe5 Rd1+ 26. Kh2) ({Predecessor:} 23. Nd2 Qd7 24. c4 Nf3+ {½-½ (24) Neborak,Y (2332)-Eremin,N (2074) ICCF email 2013}) 23... Qxd1 {[%emt 0:00:04]} 24. Rxd1 {[%emt 0:00:00]} Rxe5 {[%emt 0:00:07]} 25. Rxe5 {[%emt 0:00:08]} Bxe5 $11 {[%emt 0:00:00][%mdl 4096] Endgame KRB-KRB} 26. Rd5 {[%emt 0:00:04]} Bg7 {[%emt 0:01:12]} 27. Kf1 {[%emt 0:01:16]} a5 {[%emt 0:04:25]} 28. Rb5 {[%emt 0:01:09] Inhibits Rb8.} Kf8 {[%emt 0:01:20]} 29. Ke2 {[%emt 0:00:48]} Ke8 {[%emt 0:00:24]} 30. Kd3 {[%emt 0:00:15]} Kd7 {[%emt 0:01:12]} 31. Bc1 {[%emt 0:01:47]} a4 {[%emt 0:01:48] [#] Threatens to win with ...a3.} 32. b4 {[%emt 0:00:49]} a3 {[%emt 0:00:11] Hoping for ...a2.} 33. Ra5 {[%emt 0:00:03]} Rxa5 {[%emt 0:00:03]} 34. bxa5 {[%emt 0:00:01] KB-KB} Bf8 {[%emt 0:00:51]} (34... a2 $5 35. Bb2 Kc6 $11) 35. Kc2 {[%emt 0:01:12]} Kc6 {[%emt 0:00:15]} (35... a2 $5 36. Bb2 Kc6 $11) 36. c4 {[%emt 0:00:43]} Kb7 {[%emt 0:00:25]} (36... a2 $5 37. Bb2 Bb4 $11) 37. Kb3 {[%emt 0:00:15]} Ka6 {[%emt 0:00:03]} 38. Bd2 {[%emt 0:00:01]} h5 {[%emt 0:00:16]} 39. f3 {[%emt 0:00:02]} Bd6 {[%emt 0:00:16]} 40. Be1 {[%emt 0:00:04]} c6 {[%emt 0:00:18]} 41. Bd2 {[%emt 0:00:04]} Be7 {[%emt 0:00:05]} 42. Be1 {[%emt 0:00:02]} Bd6 {[%emt 0:00:01]} 43. Bd2 {[%emt 0:00:00]} Be7 {[%emt 0:00:04]} 44. Be1 {[%emt 0:00:01]} Bd6 {[%emt 0:00:01] An interesting draw.  Weighted Error Value: White=0.02 (flawless) /Black=0.01 (flawless)} 1/2-1/2

[Event "FTX Crypto Cup MCCT 2022"]
[Site "Miami"]
[Date "2022.08.11"]
[Round "2.1"]
[White "Praggnanandhaa R"]
[Black "Giri, Anish"]
[Result "1/2-1/2"]
[ECO "C77"]
[WhiteElo "2648"]
[BlackElo "2760"]
[Annotator "TA"]
[PlyCount "91"]
[EventDate "2022.08.10"]
[EventType "tourn"]
[EventCountry "USA"]
[SourceTitle "playchess.com"]
[Source "ChessBase"]
[SourceQuality "1"]
[TimeControl "900+10"]

{[%evp 10,91,25,6,14,15,8,-7,0,0,0,-22,-16,-64,-48,-75,-43,-60,-32,-90,-76,-79,-68,-138,-49,-63,-10,-56,-43,-72,-78,-77,-74,-80,-79,-79,-65,-114,-42,-60,-64,-55,-64,-65,-36,-48,-31,-29,-27,-23,-6,-6,-6,-6,-6,-15,-15,-15,-15,-20,-20,-23,-25,-38,-15,-15,0,0,0,0,0,0,0,0,0,0,0,0,0,0,0,0,0,0]} 1. e4 {[%emt 0:00:00]} e5 {[%emt 0:00:00]} 2. Nf3 {[%emt 0:00:03]} Nc6 {[%emt 0:00:01]} 3. Bb5 {[%emt 0:00:00]} a6 {[%emt 0:00:01]} 4. Ba4 {[%emt 0:00:01]} Nf6 {[%emt 0:00:00]} 5. d3 {[%emt 0:00:00]} Bc5 {[%emt 0:00:12]} 6. c3 {[%emt 0:00:05]} O-O {[%emt 0:00:15] C77: Ruy Lopez: 3...a6 4 Ba4 Nf6, unusual lines.} 7. O-O {[%emt 0:01:27]} d5 {[%emt 0:00:07]} 8. Qe2 {[%emt 0:01:57] [#]} dxe4 $146 {[%emt 0:00:53]} ({Predecessor:} 8... Re8 9. Nbd2 Bg4 10. h3 Bh5 11. Re1 Ba7 12. Nf1 Bg6 13. Ng3 Nh5 14. Nxh5 Bxh5 {0-1 (46) Sztokbant,B (2190)-Dubov,D (2711) Chess.com INT 2022}) 9. dxe4 {[%emt 0:00:03]} Qe7 {[%emt 0:00:10]} 10. Bg5 {[%emt 0:00:24]} Nd8 {[%emt 0:01:14]} 11. Bh4 {[%emt 0:01:26]} (11. Nh4 $11) 11... Ne6 $1 $15 {[%emt 0:00:38]} 12. Bg3 {[%emt 0:01:00]} Bd6 {[%emt 0:04:35]} (12... Nh5 $5 {[%cal Re6f4]}) 13. Nbd2 {[%emt 0:00:37]} Nh5 {[%emt 0:00:04]} 14. b4 {[%emt 0:00:25]} ({Don't go for} 14. Bxe5 $2 Bxe5 15. g3 {[#]} (15. Nxe5 $2 Nef4 $19) 15... Bf4 $1 $19 {[%mdl 512]}) ({White should play} 14. Nc4 $15) 14... Nef4 {[%emt 0:01:13]} 15. Qe3 {[%emt 0:00:20]} b5 {[%emt 0:00:49] Inhibits Nc4.} 16. Bh4 {[%emt 0:01:44]} (16. Bb3 $15) 16... Nf6 {[%emt 0:02:44]} (16... f6 $17 17. Bb3+ Be6) 17. Bb3 {[%emt 0:00:31]} Ng6 {[%emt 0:00:09]} (17... a5 $15 18. a3 Bd7) 18. Bg3 {[%emt 0:01:49]} (18. Bxf6 $11 Qxf6 19. a4) 18... c5 {[%emt 0:00:11]} 19. a4 {[%emt 0:02:08]} bxa4 {[%emt 0:00:15]} 20. Bxa4 {[%emt 0:00:06]} cxb4 {[%emt 0:00:05]} 21. cxb4 {[%emt 0:00:28]} Bxb4 {[%emt 0:00:01]} 22. Nc4 {[%emt 0:00:02]} Bc5 {[%emt 0:00:09]} 23. Qe1 {[%emt 0:01:22]} (23. Qe2 $15 {deserves consideration.}) 23... Nh5 {[%emt 0:02:43]} (23... a5 $17 {Threatens to win with ...Ba6.} 24. Qb1 Bb7 25. Ncxe5 Nxe5 26. Nxe5 Bd4) 24. Nfxe5 {[%emt 0:01:01]} Nxg3 {[%emt 0:00:04]} 25. Nxg6 {[%emt 0:00:02]} hxg6 {[%emt 0:01:21]} 26. hxg3 {[%emt 0:00:02]} Be6 {[%emt 0:00:02] This bishop pair is nice.} (26... a5 $5 {[%cal Rc8a6]}) 27. Ne3 {[%emt 0:00:23]} Qg5 {[%emt 0:00:32]} 28. Bc6 {[%emt 0:00:17]} Rac8 {[%emt 0:00:49]} 29. Bb7 {[%emt 0:00:37]} Bxe3 {[%emt 0:00:21]} (29... Rb8 {with more complications.} 30. Bd5 Bxd5 31. Nxd5 Qxg3 32. Rxa6 Qd3) 30. Qxe3 {[%emt 0:00:55]} ({But not} 30. Bxc8 $2 Bd2 31. Qe2 Bxc8 $19) 30... Qxe3 {[%emt 0:00:02]} 31. fxe3 {[%emt 0:00:00]} Rc3 {[%emt 0:00:03]} 32. Rfe1 {[%emt 0:00:08]} Rb8 {[%emt 0:00:13]} 33. Bxa6 {[%emt 0:00:18]} Rb4 {[%emt 0:00:01]} 34. Rac1 {[%emt 0:00:21]} Rxc1 {[%emt 0:00:20]} 35. Rxc1 {[%emt 0:00:02]} Rxe4 $11 {[%emt 0:00:00][%mdl 4096] Endgame KRB-KRB} 36. Rc3 {[%emt 0:00:08]} g5 {[%emt 0:00:02]} 37. Bc8 {[%emt 0:00:32] The position is equal.} g6 {[%emt 0:00:14]} 38. Bxe6 {[%emt 0:00:09]} Rxe6 {[%emt 0:00:00] KR-KR} 39. Kf2 {[%emt 0:00:00]} Kg7 {[%emt 0:00:01]} 40. g4 {[%emt 0:00:04]} Re5 {[%emt 0:00:03]} 41. Kf3 {[%emt 0:00:01]} Kf6 {[%emt 0:00:01]} 42. Rc6+ {[%emt 0:00:02]} Ke7 {[%emt 0:00:01]} 43. Rc7+ $1 {[%emt 0:00:01]} Kf6 {[%emt 0:00:00]} 44. Rc6+ $1 {[%emt 0:00:00]} Ke7 {[%emt 0:00:01]} 45. Rc7+ {[%emt 0:00:01]} Kf6 {[%emt 0:00:00]} 46. Rc6+ {[%emt 0:00:00] Weighted Error Value: White=0.13 (very precise) /Black=0.12 (very precise)} 1/2-1/2

[Event "FTX Crypto Cup MCCT 2022"]
[Site "Miami"]
[Date "2022.08.11"]
[Round "2.2"]
[White "Aronian, Levon"]
[Black "Duda, Jan-Krzysztof"]
[Result "0-1"]
[ECO "D31"]
[WhiteElo "2775"]
[BlackElo "2750"]
[Annotator "TA"]
[PlyCount "170"]
[EventDate "2022.08.10"]
[EventType "tourn"]
[EventCountry "USA"]
[SourceTitle "playchess.com"]
[Source "ChessBase"]
[SourceQuality "1"]
[TimeControl "900+10"]

{[%evp 10,170,0,-16,0,-19,0,0,0,0,0,0,0,0,-5,-13,-9,-24,0,-47,0,-19,-3,-53,-47,-50,-47,-47,-47,-65,-54,-54,-54,-54,-54,-54,-54,-54,-47,-47,-47,-49,-47,-47,-47,-53,-53,-53,-53,-53,-53,-52,-50,-49,-41,-61,-52,-61,-61,-76,-76,-84,-71,-71,-71,-71,0,-144,-123,-182,-162,-155,-180,-163,-155,-168,-75,-75,-75,-75,0,-75,-19,-20,-20,-20,-20,-8,-8,-8,-8,-60,-60,-60,-60,-60,-60,-60,-60,-60,-60,-60,-60,-60,-16,-60,0,-60,-60,-60,-60,-60,-60,-60,-60,-60,-12,-60,-60,-60,-60,-60,-60,-60,-60,-900,-67,-505,-474,-1028,-978,-791,-737,-6311,-6125,-5325,-5315,-3162,-5991,-6215,-716,-504,0,-6922,-6661,-6966,-6406,-6704,-6508,-5979,-4516,-6527,-6334,-2523,-4854,-5824,-5189,-6394,-6394,-29982,-29983,-29982,-29983]} 1. c4 {[%emt 0:00:00]} e6 {[%emt 0:00:00]} 2. Nc3 {[%emt 0:00:12]} d5 {[%emt 0:00:03]} 3. d4 {[%emt 0:00:03]} c6 {[%emt 0:00:01]} 4. e3 {[%emt 0:00:05]} Nf6 {[%emt 0:00:03]} 5. Bd2 {[%emt 0:00:04]} Nbd7 {[%emt 0:00:13]} 6. Rc1 {[%emt 0:00:03]} Be7 {[%emt 0:00:50]} 7. Bd3 {[%emt 0:00:26]} a6 {[%emt 0:01:31]} 8. cxd5 {[%emt 0:01:03]} exd5 {[%emt 0:00:08]} 9. Nge2 {[%emt 0:00:08]} O-O {[%emt 0:00:08]} 10. O-O {[%emt 0:00:03]} Re8 {[%emt 0:00:08]} 11. Ng3 {[%emt 0:00:12]} Nf8 {[%emt 0:01:12]} 12. Nce2 {[%emt 0:00:50]} g6 {[%emt 0:00:17]} 13. Nf4 {[%emt 0:01:03]} h5 {[%emt 0:00:49]} 14. Nge2 {[%emt 0:00:36]} (14. f3 $11 {is superior.}) 14... Ne4 {[%emt 0:00:46]} (14... g5 $15 15. Nh3 Bxh3 16. gxh3 Qd7) 15. Be1 {[%emt 0:00:26]} Nd6 {[%emt 0:00:25]} 16. f3 {[%emt 0:00:28]} (16. Bb4 $11) 16... Bf5 {[%emt 0:01:03]} 17. Bf2 {[%emt 0:00:02]} Bg5 {[%emt 0:00:18]} 18. Re1 {[%emt 0:00:02]} Ne6 {[%emt 0:00:17]} (18... Bxd3 {with more complications.} 19. Qxd3 Bh6 20. Nc3 Bxf4 21. exf4 Rxe1+ 22. Rxe1 Qf6) 19. b3 {[%emt 0:02:43]} Nxf4 {[%emt 0:00:41]} (19... Qf6 {seems wilder.} 20. Qd2 Rad8 21. Bxf5 Nxf5 22. Nd3 Bh6) 20. Nxf4 {[%emt 0:00:10]} Bxf4 {[%emt 0:00:15]} 21. exf4 {[%emt 0:00:00]} Rxe1+ {[%emt 0:00:01]} 22. Bxe1 {[%emt 0:00:01]} Bxd3 {[%emt 0:00:08]} 23. Qxd3 {[%emt 0:00:00]} Qf6 {[%emt 0:00:01]} 24. g3 {[%emt 0:00:12]} Re8 {[%emt 0:00:21]} 25. Bf2 {[%emt 0:00:15]} Nf5 {[%emt 0:00:19]} 26. Qd2 {[%emt 0:00:32]} Re6 {[%emt 0:01:13]} 27. Kg2 {[%emt 0:00:42]} Qe7 {[%emt 0:00:15]} 28. Kf1 {[%emt 0:00:02]} Kf8 {[%emt 0:01:33]} 29. Re1 {[%emt 0:00:31]} Rxe1+ {[%emt 0:00:30]} 30. Bxe1 {[%emt 0:00:02]} Ke8 {[%emt 0:00:29]} 31. Bf2 {[%emt 0:00:09]} Kd7 {[%emt 0:00:01]} 32. h3 {[%emt 0:00:05]} Ng7 {[%emt 0:00:11]} 33. g4 {[%emt 0:00:24]} f5 {[%emt 0:01:47]} 34. g5 {[%emt 0:00:24]} Ne6 {[%emt 0:00:14]} 35. h4 {[%emt 0:00:14]} Qa3 {[%emt 0:00:12]} 36. Kg2 {[%emt 0:00:10]} a5 {[%emt 0:00:03]} 37. Kg3 {[%emt 0:00:02]} Qd6 {[%emt 0:00:52]} ({Better is} 37... b6 $17) 38. Be3 {[%emt 0:01:50]} (38. Qxa5 $11 {remains equal.} Nxf4 39. Qd2 Ne6+ 40. Kg2) 38... Qb4 $1 $17 {[%emt 0:00:34]} 39. Qd3 {[%emt 0:01:19]} (39. Qb2 $17 {is a better defense.}) 39... Qe1+ $19 {[%emt 0:00:58]} 40. Bf2 {[%emt 0:00:02]} Qc1 $1 {[%emt 0:00:25]} (40... Qh1 41. Qe3 $11) 41. Be3 {[%emt 0:00:02] [#]} Qb2 $1 {[%emt 0:00:18]} (41... Qe1+ 42. Bf2 Qc1 43. Qe3 Qxe3 44. Bxe3 $17) 42. a4 {[%emt 0:00:07]} Kc7 {[%emt 0:00:27]} (42... Kd6 $19 {is more deadly. White must now prevent ...Kd7.} 43. Qd1 Qc3) 43. Bf2 $17 {[%emt 0:01:46]} Qc1 {[%emt 0:00:04]} 44. Be3 {[%emt 0:00:02]} Qb2 {[%emt 0:00:55]} 45. Bf2 $1 {[%emt 0:00:03] [#]} Kd6 {[%emt 0:00:07]} (45... Qa3 $1 $17) 46. Qe3 $11 {[%emt 0:00:28]} Kd7 {[%emt 0:00:02]} 47. Qe5 $1 {[%emt 0:00:01]} Qd2 {[%emt 0:00:41]} (47... Qxb3 $2 48. Qf6 Qxa4 49. Qf7+ (49. Qxg6 Qb4 $14) 49... Kd6 50. Qxg6 $16) 48. Qb8 {[%emt 0:00:12]} Qb4 {[%emt 0:00:07]} 49. Qg8 {[%emt 0:00:17]} Nf8 {[%emt 0:00:03]} (49... Qd2 $2 50. Qf7+ (50. Qxg6 Qxf4+ 51. Kg2 Qd6 $18) 50... Kd6 51. Qxg6 Qxf4+ 52. Kg2 $18) 50. Qg7+ {[%emt 0:01:11]} ({White should play} 50. Qh8 $1 $11) 50... Qe7 $1 $15 {[%emt 0:00:15]} 51. Qh8 {[%emt 0:01:03]} Ke8 {[%emt 0:00:29]} 52. Kg2 {[%emt 0:00:08]} Kf7 {[%emt 0:00:14]} 53. Qe5 {[%emt 0:00:12]} Qxe5 $1 {[%emt 0:00:23]} ({Reject} 53... Ne6 54. Be1 $11) 54. fxe5 {[%emt 0:00:00]} Ne6 {[%emt 0:00:14]} 55. Kf1 $1 {[%emt 0:00:01]} Ke7 {[%emt 0:00:27]} 56. Ke2 {[%emt 0:00:02]} Kd7 {[%emt 0:00:04]} 57. Kd3 {[%emt 0:00:14]} b5 {[%emt 0:00:23]} (57... b6 $15) 58. Be3 {[%emt 0:01:07]} (58. b4 $1 $11) 58... f4 $15 {[%emt 0:00:03]} 59. Bf2 {[%emt 0:00:16]} Kc7 {[%emt 0:00:10]} 60. Be1 {[%emt 0:00:08]} Kb6 {[%emt 0:00:04]} 61. Bf2 {[%emt 0:00:01]} Ka6 {[%emt 0:00:09]} 62. Kc3 {[%emt 0:00:13]} Kb7 {[%emt 0:00:08]} (62... b4+ $15 63. Kd3 Kb6) 63. Kd3 {[%emt 0:00:04]} (63. b4 $1 $11 {might be stronger.}) 63... Kc8 {[%emt 0:00:16]} 64. Kc3 {[%emt 0:00:41]} b4+ $1 {[%emt 0:00:10]} 65. Kd3 {[%emt 0:00:05]} Ng7 {[%emt 0:00:00]} 66. Be1 {[%emt 0:01:22]} Nf5 {[%emt 0:00:09]} 67. Bd2 $2 {[%emt 0:00:01][%mdl 8192]} (67. Bf2 $15) 67... Kd7 $2 {[%emt 0:00:23]} ({Black should try} 67... Nxh4 $19 68. Ke2 Nf5) 68. Bxf4 $2 {[%emt 0:00:02][%mdl 8192]} (68. Be1 $1 $15) 68... Nxh4 $19 {[%emt 0:00:12]} 69. Ke2 {[%emt 0:00:46]} (69. e6+ $142 Kxe6 70. Bc7) 69... Ke6 $19 {[%emt 0:00:06]} 70. Be3 {[%emt 0:00:07]} Nf5 {[%emt 0:00:05]} 71. f4 {[%emt 0:00:05]} Ng7 {[%emt 0:00:17]} 72. Kf3 {[%emt 0:00:35]} Kf5 {[%emt 0:00:03]} 73. Bf2 {[%emt 0:00:06]} Ne6 {[%emt 0:00:01]} 74. Be3 {[%emt 0:00:01]} Nc7 {[%emt 0:00:31]} (74... c5 $142 75. dxc5 d4) 75. Bf2 $19 {[%emt 0:00:05]} Ne6 {[%emt 0:00:02]} (75... h4 $142 76. Bxh4 Ne6) 76. Be3 $19 {[%emt 0:00:01]} c5 {[%emt 0:00:06]} 77. dxc5 {[%emt 0:00:06]} d4 {[%emt 0:00:00]} 78. Bf2 {[%emt 0:00:09]} Nxc5 {[%emt 0:00:10]} 79. Bxd4 {[%emt 0:00:01]} Nxb3 {[%emt 0:00:01]} 80. Bf2 {[%emt 0:00:15]} Nd2+ {[%emt 0:00:09]} 81. Ke3 {[%emt 0:00:05]} Ne4 {[%emt 0:00:08]} 82. Be1 {[%emt 0:00:02]} Nc5 {[%emt 0:00:38]} 83. Kd4 {[%emt 0:00:01]} Nxa4 {[%emt 0:00:02]} 84. Bf2 {[%emt 0:00:21]} b3 {[%emt 0:00:10]} 85. Kd3 {[%emt 0:00:16]} b2 {[%emt 0:00:01]} 0-1

[Event "FTX Crypto Cup MCCT 2022"]
[Site "Miami"]
[Date "2022.08.11"]
[Round "2.2"]
[White "Giri, Anish"]
[Black "Praggnanandhaa R"]
[Result "1/2-1/2"]
[ECO "A09"]
[WhiteElo "2760"]
[BlackElo "2648"]
[Annotator "TA"]
[PlyCount "67"]
[EventDate "2022.08.10"]
[EventType "tourn"]
[EventCountry "USA"]
[SourceTitle "playchess.com"]
[Source "ChessBase"]
[SourceQuality "1"]
[TimeControl "900+10"]

{[%evp 11,67,12,1,12,21,12,2,21,8,20,31,30,8,26,34,17,18,0,0,0,0,0,0,0,0,-36,-41,-30,-20,-18,-23,-22,-14,-15,0,-14,0,0,0,0,0,0,15,0,0,0,15,0,30,0,0,0,0,0,0,0,0,0]} 1. Nf3 {[%emt 0:00:00]} d5 {[%emt 0:00:00]} 2. g3 {[%emt 0:00:04]} c5 {[%emt 0:00:02]} 3. Bg2 {[%emt 0:00:03]} Nf6 {[%emt 0:00:01]} 4. O-O {[%emt 0:00:02]} e6 {[%emt 0:00:01]} 5. c4 {[%emt 0:00:23]} d4 {[%emt 0:00:02]} 6. d3 {[%emt 0:00:07]} Nc6 {[%emt 0:00:03]} 7. e3 {[%emt 0:00:00] A09: Réti Opening: 1 Nf3 d5 2 c4.} Be7 {[%emt 0:00:03]} 8. Re1 {[%emt 0:02:26]} O-O {[%emt 0:00:05]} 9. exd4 {[%emt 0:00:31]} cxd4 {[%emt 0:00:03]} 10. Na3 {[%emt 0:00:16]} Bc5 {[%emt 0:00:03] [#]} 11. Ne5 $146 {[%emt 0:01:09]} ({Predecessor:} 11. Nc2 a5 12. Rb1 Re8 13. a3 a4 14. Ne5 Nxe5 15. Rxe5 Nd7 16. Re1 e5 17. Nb4 {½-½ (38) Indjic,A (2621)-Gukesh,D (2659) Sharjah 2022}) 11... Nxe5 {[%emt 0:00:04]} 12. Rxe5 {[%emt 0:00:00]} Nd7 {[%emt 0:00:01]} 13. Re1 {[%emt 0:00:06]} Re8 {[%emt 0:00:07]} 14. Bd2 {[%emt 0:00:07]} Bxa3 {[%emt 0:00:05]} 15. bxa3 {[%emt 0:00:01]} Rb8 {[%emt 0:00:00]} 16. Qa4 {[%emt 0:01:38]} b6 {[%emt 0:00:11]} 17. Qxa7 {[%emt 0:01:13] [#] Black must now prevent Bf4.} Bb7 $1 {[%emt 0:01:11]} 18. Qa4 {[%emt 0:00:13]} ({Much worse is} 18. Bxb7 Nc5 19. Bg2 Re7 20. Qxe7 Qxe7 $17) (18. Bb4 $5 {[%cal Rb4d6]}) 18... Bxg2 {[%emt 0:03:30]} 19. Kxg2 {[%emt 0:00:00]} Ra8 {[%emt 0:00:36]} 20. Qc2 {[%emt 0:00:07]} Rxa3 {[%emt 0:00:08] aiming for ...Qa8+.} 21. Bb4 {[%emt 0:00:04]} Qa8+ {[%emt 0:00:48]} 22. Kg1 {[%emt 0:00:03]} Ra4 {[%emt 0:01:01]} 23. a3 {[%emt 0:00:04]} Nb8 {[%emt 0:00:18]} 24. Rab1 {[%emt 0:00:57][%cal Ba1b1,Bb1b5,Bb5e5][%mdl 32]} Nc6 {[%emt 0:00:14]} 25. Bd6 {[%emt 0:01:49]} Ra6 {[%emt 0:00:31]} 26. Rb5 {[%emt 0:00:36]} Rd8 {[%emt 0:02:41]} 27. Bb4 {[%emt 0:00:30]} h6 {[%emt 0:00:59]} 28. Qe2 {[%emt 0:00:20]} Qc8 {[%emt 0:00:39]} 29. f4 {[%emt 0:03:02]} Qd7 {[%emt 0:00:23]} 30. Qf3 {[%emt 0:00:01]} (30. Qe4 $5 {[%cal Rf4f5]}) 30... Na7 {[%emt 0:01:23] The position is equal.} 31. Rbe5 {[%emt 0:00:16]} Nc6 {[%emt 0:00:40]} 32. Rb5 {[%emt 0:00:05]} Na7 {[%emt 0:00:19]} 33. Rbe5 {[%emt 0:00:02]} Nc6 {[%emt 0:01:14]} 34. Rb5 {[%emt 0:00:02] Weighted Error Value: White=0.05 (flawless) /Black=0.04 (flawless)} 1/2-1/2